bitfinex/quotes_BTCUSD_20251011
["timestamp","ask_amount","ask_price","bid_price","bid_amount"]
[1760151851827,1.6857412,113350.0,113340.0,8e-05]
[1760151852417,0.3701519,113310.0,113280.0,0.02711184]
[1760151852640,0.0389788,113290.0,113260.0,0.07043184]
[1760151852812,0.57191492,113290.0,113250.0,0.0053]
[1760151853232,0.59922492,113290.0,113250.0,0.0053]
[1760151853617,0.59937516,113290.0,113250.0,0.0053]
[1760151853868,0.599373,113290.0,113250.0,0.0053]
[1760151854068,0.34,113270.0,113250.0,0.0053]
[1760151854839,0.35641306,113270.0,113250.0,0.0003]
[1760151854969,0.34,113270.0,113250.0,0.0003]
[1760151855506,0.53298578,113270.0,113250.0,0.0003]
[1760151855873,0.55867935,113270.0,113250.0,0.0003]
[1760151856073,0.56689289,113270.0,113250.0,0.0003]
[1760151856282,0.17658484,113260.0,113250.0,0.0003]
[1760151856489,1.07787848,113260.0,113250.0,0.0003]
[1760151856887,0.90129364,113260.0,113250.0,0.0003]
[1760151857304,0.92892516,113260.0,113250.0,0.0003]
[1760151857504,0.90129364,113260.0,113250.0,0.0003]
[1760151857819,1.24129364,113260.0,113250.0,0.0003]
[1760151858014,1.44803038,113260.0,113250.0,0.0003]
[1760151858244,1.24129364,113260.0,113250.0,0.0003]
[1760151858626,0.01641509,113260.0,113250.0,0.0003]
[1760151859882,0.01641509,113260.0,113250.0,0.12486999]
[1760151860275,0.01641509,113260.0,113250.0,0.04171]
[1760151860487,0.01641509,113260.0,113240.0,0.04191]
[1760151860726,0.01641509,113260.0,113250.0,0.18741]
[1760151861148,0.01641509,113260.0,113250.0,0.70953867]
[1760151861576,0.01656533,113290.0,113250.0,0.2175619]
[1760151861781,0.01656533,113290.0,113260.0,0.12955]
[1760151862254,0.01656533,113290.0,113260.0,0.04171]
[1760151862438,0.01656533,113290.0,113250.0,0.0718619]
[1760151862656,0.02477141,113290.0,113260.0,0.04171]
[1760151862983,0.01656533,113290.0,113270.0,0.04171]
[1760151863163,0.01656533,113290.0,113280.0,0.18741]
[1760151863382,0.01656533,113290.0,113280.0,0.2175619]
[1760151864303,0.01656533,113290.0,113280.0,0.18741]
[1760151865355,0.00015024,113290.0,113280.0,0.18741]
[1760151865997,0.00015024,113290.0,113280.0,0.09957]
[1760151866634,0.00015024,113290.0,113270.0,0.04171]
[1760151866758,0.00015024,113290.0,113270.0,0.12955]
[1760151866981,0.00015024,113290.0,113270.0,0.04171]
[1760151867164,0.00015024,113290.0,113280.0,0.00456652]
[1760151867559,0.09357709,113310.0,113280.0,0.00456652]
[1760151867761,0.09357709,113310.0,113260.0,0.12776241]
[1760151867961,0.04109,113280.0,113260.0,0.03992241]
[1760151868160,0.06677,113280.0,113260.0,0.03992241]
[1760151868364,0.06677,113280.0,113250.0,0.0718619]
[1760151868777,0.06677,113280.0,113250.0,0.1597019]
[1760151868979,0.06677,113280.0,113250.0,0.04171]
[1760151869175,0.02568,113270.0,113240.0,0.04191]
[1760151869396,0.02568,113270.0,113240.0,0.0002]
[1760151869397,0.06677,113250.0,113240.0,0.0002]
[1760151869640,0.08322271,113250.0,113240.0,0.0002]
[1760151870242,0.08372555,113250.0,113240.0,0.0002]
[1760151870494,0.22446083,113280.0,113240.0,0.0002]
[1760151870701,0.22446083,113280.0,113240.0,0.00035024]
[1760151870906,0.07043184,113290.0,113250.0,0.04171]
[1760151872513,0.41043184,113290.0,113250.0,0.04171]
[1760151873742,0.41043184,113290.0,113240.0,0.04206024]
[1760151874073,0.41043184,113290.0,113240.0,0.12990024]
[1760151874288,0.41043184,113290.0,113280.0,0.00456652]
[1760151874498,1.3035455,113290.0,113280.0,0.00456652]
[1760151874700,1.30354557,113290.0,113280.0,0.00456652]
[1760151874973,1.4096518,113290.0,113280.0,0.00456652]
[1760151875155,1.23311372,113290.0,113280.0,0.00456652]
[1760151875512,1.23311372,113290.0,113240.0,0.00247652]
[1760151875719,1.23311372,113290.0,113240.0,0.00262676]
[1760151877142,0.00823517,113290.0,113240.0,0.09046676]
[1760151877315,0.53358796,113300.0,113240.0,0.09046676]
[1760151877512,0.34823517,113300.0,113250.0,0.04171]
[1760151877680,0.34823517,113300.0,113250.0,0.12955]
[1760151878743,0.00823517,113300.0,113260.0,0.13187]
[1760151879085,0.00823517,113310.0,113270.0,0.0447]
[1760151879280,0.07866701,113310.0,113270.0,0.0447]
[1760151880438,0.41866701,113310.0,113270.0,0.0447]
[1760151881744,0.41866701,113310.0,113260.0,0.0447]
[1760151881965,0.41866701,113310.0,113270.0,0.0447]
[1760151882718,0.02474988,113310.0,113270.0,0.0447]
[1760151882898,0.00094297,113290.0,113270.0,0.04527107]
[1760151883194,0.01745768,113290.0,113270.0,0.04527107]
[1760151883405,0.0482,113280.0,113270.0,0.00057107]
[1760151883604,0.07294988,113280.0,113270.0,0.00057107]
[1760151884401,0.09148988,113280.0,113270.0,0.00057107]
[1760151885050,0.08984955,113280.0,113270.0,0.00057107]
[1760151888830,0.42984955,113280.0,113270.0,0.00057107]
[1760151891080,0.42984955,113280.0,113240.0,0.03106465]
[1760151891310,0.00935,113250.0,113240.0,0.03106465]
[1760151891457,0.04973,113250.0,113230.0,0.08963733]
[1760151891659,0.04988071,113250.0,113230.0,0.17242733]
[1760151891864,0.04988071,113250.0,113240.0,0.09801]
[1760151892277,0.04823349,113250.0,113230.0,0.08963733]
[1760151892484,0.07447349,113250.0,113230.0,0.04642733]
[1760151892686,0.09102137,113250.0,113230.0,0.04642733]
[1760151892892,0.0893677,113250.0,113230.0,0.04547353]
[1760151893087,0.07281982,113250.0,113230.0,0.04547353]
[1760151893498,0.02458,113240.0,113210.0,0.005]
[1760151893721,0.06116,113220.0,113210.0,0.005]
[1760151894878,0.02183,113220.0,113210.0,0.10301]
[1760151894993,0.02183,113220.0,113210.0,0.1858]
[1760151896195,0.02458,113240.0,113210.0,0.1858]
[1760151896401,0.02183,113220.0,113210.0,0.10301]
[1760151897992,0.06116,113220.0,113210.0,0.10301]
[1760151898405,0.02183,113220.0,113210.0,0.10643837]
[1760151898606,0.06116,113220.0,113210.0,0.10643837]
[1760151898831,0.06116,113220.0,113210.0,0.06243837]
[1760151899556,0.02183,113220.0,113210.0,0.06243837]
[1760151899788,0.06221,113220.0,113210.0,0.06243837]
[1760151900834,0.02183,113220.0,113210.0,0.06243837]
[1760151901041,0.06205,113220.0,113210.0,0.00342837]
[1760151901258,0.08694,113220.0,113210.0,0.00342837]
[1760151902096,1.2290921,113250.0,113210.0,0.00342837]
[1760151902308,1.2290921,113250.0,113200.0,0.04321]
[1760151902309,0.34,113240.0,113200.0,0.04321]
[1760151902524,0.00460973,113220.0,113190.0,0.18795941]
[1760151902738,0.61242086,113240.0,113190.0,0.09809]
[1760151902937,0.00460973,113230.0,113190.0,0.09809]
[1760151903537,0.34,113220.0,113190.0,0.09809]
[1760151903780,0.34,113220.0,113190.0,0.04329]
[1760151904156,0.34,113220.0,113190.0,8e-05]
[1760151906426,0.34,113220.0,113170.0,0.18716941]
[1760151907242,0.34,113220.0,113170.0,0.15917941]
[1760151907429,0.34,113220.0,113170.0,0.24196941]
[1760151907857,0.34,113220.0,113210.0,0.00342837]
[1760151909682,0.00460973,113230.0,113210.0,0.00342837]
[1760151909942,0.00460973,113230.0,113170.0,0.10437941]
[1760151910147,0.34,113210.0,113170.0,0.10437941]
[1760151910360,0.4412,113200.0,113170.0,0.10437941]
[1760151910572,0.4412,113190.0,113170.0,0.19113941]
[1760151910884,0.4412,113190.0,113180.0,0.05736]
[1760151911327,0.4412,113180.0,113170.0,0.10437941]
[1760151911527,0.4412,113180.0,113170.0,0.16173941]
[1760151911764,0.4412,113180.0,113160.0,0.10508941]
[1760151912012,0.4412,113180.0,113160.0,0.16244941]
[1760151912133,0.4412,113180.0,113170.0,0.06187941]
[1760151912535,0.00015057,113190.0,113160.0,0.06187941]
[1760151912784,0.00015057,113190.0,113180.0,0.04692568]
[1760151913339,0.34015057,113190.0,113180.0,0.04692568]
[1760151913760,0.34015057,113190.0,113170.0,0.04692568]
[1760151913989,0.34015057,113190.0,113180.0,0.04692568]
[1760151914209,0.54699652,113190.0,113180.0,0.00292568]
[1760151914421,0.5558313,113190.0,113150.0,0.06187941]
[1760151914631,0.0301519,113180.0,113150.0,0.06187941]
[1760151915109,0.34,113170.0,113150.0,0.06187941]
[1760151915336,0.34,113170.0,113140.0,0.06187941]
[1760151915548,0.3701519,113170.0,113160.0,0.00628812]
[1760151918129,0.38666975,113170.0,113160.0,0.00628812]
[1760151918679,0.58839502,113170.0,113160.0,0.00628812]
[1760151920124,0.68839501,113170.0,113160.0,0.00628812]
[1760151920324,0.36499999,113130.0,113110.0,0.05806968]
[1760151920525,1.2313964,113130.0,113090.0,0.07773005]
[1760151920726,1.2313964,113130.0,113090.0,0.0002]
[1760151921294,0.0301519,113120.0,113070.0,0.04449]
[1760151921508,0.05506976,113120.0,113080.0,0.04449]
[1760151921731,0.01666829,113120.0,113080.0,0.04449]
[1760151921983,0.02491739,113120.0,113090.0,0.04449]
[1760151922160,0.01666829,113120.0,113090.0,0.04449]
[1760151922362,0.02491859,113120.0,113080.0,0.04449]
[1760151922605,0.05507049,113120.0,113070.0,0.04449]
[1760151922776,0.05507049,113120.0,113060.0,0.04449]
[1760151922972,0.12550233,113120.0,113060.0,0.04449]
[1760151923640,0.12550233,113120.0,113070.0,0.04449]
[1760151923879,0.02491859,113120.0,113080.0,0.13125]
[1760151924077,0.02491859,113120.0,113090.0,0.04449]
[1760151924298,0.01666829,113120.0,113100.0,0.13125]
[1760151924489,0.01666829,113120.0,113110.0,0.10185]
[1760151925174,0.01666829,113120.0,113110.0,0.18861]
[1760151926800,0.02127802,113120.0,113110.0,0.18861]
[1760151927137,0.02127802,113120.0,113110.0,0.19147089]
[1760151927525,0.02127802,113120.0,113110.0,0.10471089]
[1760151928833,0.02127802,113120.0,113110.0,0.19147089]
[1760151930150,0.02127802,113120.0,113110.0,0.04735089]
[1760151930291,0.02127802,113120.0,113110.0,0.06539654]
[1760151930641,0.0212612,113120.0,113110.0,0.00286089]
[1760151930877,0.02951171,113120.0,113110.0,0.06022089]
[1760151931082,0.0212612,113120.0,113110.0,0.25400654]
[1760151931283,0.0212612,113120.0,113110.0,0.19147089]
[1760151933386,0.0212612,113120.0,113110.0,0.68545521]
[1760151933587,0.00015044,113120.0,113110.0,0.76362687]
[1760151934027,0.00015044,113120.0,113110.0,0.68545521]
[1760151934431,0.00015044,113120.0,113110.0,0.82323866]
[1760151935067,0.00015044,113120.0,113110.0,1.00005768]
[1760151935954,0.00015044,113120.0,113110.0,0.95605768]
[1760151936167,0.02492573,113120.0,113110.0,0.84842613]
[1760151936835,0.02492573,113120.0,113110.0,0.67160711]
[1760151938554,0.02492573,113120.0,113110.0,0.17762279]
[1760151938853,0.02492573,113120.0,113110.0,0.14747089]
[1760151939056,0.02492573,113120.0,113110.0,0.14465089]
[1760151939845,0.02492573,113120.0,113110.0,0.06071089]
[1760151940204,0.05368573,113120.0,113090.0,0.04449]
[1760151940412,0.01797,113100.0,113080.0,0.04449]
[1760151940650,0.04274529,113100.0,113080.0,0.04002]
[1760151940863,0.04274529,113100.0,113080.0,0.12396]
[1760151941265,0.04274529,113100.0,113080.0,0.04002]
[1760151942367,0.02876,113090.0,113070.0,0.04002]
[1760151942588,0.02876,113090.0,113050.0,0.04002]
[1760151942589,0.01797,113080.0,113050.0,0.04002]
[1760151942819,0.04673,113060.0,113050.0,0.04002]
[1760151943040,0.07150529,113060.0,113050.0,0.04002]
[1760151943247,0.06932848,113060.0,113050.0,0.04002]
[1760151943449,0.04056848,113060.0,113050.0,0.09793]
[1760151943655,0.02492559,113060.0,113050.0,0.13787]
[1760151943878,0.02492559,113060.0,113050.0,0.18143565]
[1760151944084,0.02492559,113060.0,113050.0,0.17789]
[1760151944466,0.01666572,113060.0,113050.0,0.67187432]
[1760151945672,0.01666572,113060.0,113050.0,0.09395]
[1760151945875,0.01666572,113060.0,113050.0,0.17789]
[1760151946506,0.01666572,113060.0,113050.0,0.18132565]
[1760151946883,0.01666572,113060.0,113050.0,0.17064574]
[1760151947292,0.01666572,113060.0,113050.0,0.66463006]
[1760151947741,0.01666572,113060.0,113050.0,0.17064574]
[1760151948190,0.0001503,113060.0,113050.0,0.17064574]
[1760151948511,0.0001503,113060.0,113050.0,0.08670574]
[1760151948722,0.3515103,113060.0,113050.0,0.00343565]
[1760151948916,0.36795121,113060.0,113050.0,0.00343565]
[1760151949137,0.44368924,113060.0,113050.0,0.00343565]
[1760151950805,0.03616924,113060.0,113050.0,0.00343565]
[1760151951006,0.0108303,113060.0,113050.0,0.10191565]
[1760151951814,0.0001503,113060.0,113050.0,0.18237565]
[1760151953751,0.07056914,113090.0,113050.0,0.18237565]
[1760151953951,0.41876431,113090.0,113060.0,0.0436]
[1760151954106,0.41876431,113090.0,113070.0,0.0436]
[1760151954503,0.34833247,113090.0,113070.0,0.0436]
[1760151954715,0.00833247,113090.0,113080.0,0.0436]
[1760151955065,0.0001373,113090.0,113080.0,0.0436]
[1760151955828,0.0001373,113090.0,113080.0,0.09848]
[1760151957417,0.0235673,113090.0,113070.0,0.12406]
[1760151957788,0.00833247,113090.0,113080.0,0.0436]
[1760151957997,0.0001373,113090.0,113080.0,0.0436]
[1760151958133,0.0235673,113090.0,113080.0,0.0436]
[1760151958328,0.03176247,113090.0,113070.0,0.12366]
[1760151959099,0.03176247,113090.0,113080.0,0.00171737]
[1760151959855,0.04817095,113090.0,113080.0,0.00171737]
[1760151960532,0.12446095,113090.0,113080.0,0.00171737]
[1760151961344,0.04817095,113090.0,113080.0,0.00171737]
[1760151961543,0.04817095,113090.0,113080.0,0.10019737]
[1760151961544,0.02474095,113090.0,113080.0,0.10019737]
[1760151961826,0.00833247,113090.0,113080.0,0.10019737]
[1760151961947,0.4409173,113090.0,113080.0,0.00171737]
[1760151962303,0.46553165,113090.0,113080.0,0.00171737]
[1760151965495,0.34,113080.0,113060.0,0.0436]
[1760151965692,0.39191522,113080.0,113060.0,0.0436]
[1760151965889,0.40840585,113080.0,113060.0,0.0436]
[1760151966141,0.57958,113070.0,113050.0,0.04410284]
[1760151966344,0.02428,113060.0,113050.0,0.00050284]
[1760151966806,0.08155,113060.0,113050.0,0.00050284]
[1760151967448,0.10631452,113060.0,113050.0,0.00050284]
[1760151971514,0.44631452,113060.0,113050.0,0.00050284]
[1760151971720,0.44631452,113060.0,113050.0,0.00222089]
[1760151972753,0.10631452,113060.0,113050.0,0.00222089]
[1760151974078,0.47646642,113060.0,113050.0,0.00222089]
[1760151974210,0.34,113050.0,113040.0,8e-05]
[1760151974557,0.41950926,113050.0,113040.0,8e-05]
[1760151974775,0.47389926,113050.0,113040.0,0.00065281]
[1760151975186,0.44374736,113050.0,113040.0,0.00065281]
[1760151975864,0.10374736,113050.0,113040.0,0.00065281]
[1760151975995,0.07965736,113050.0,113040.0,0.00065281]
[1760151976199,0.02626736,113050.0,113040.0,0.18267281]
[1760151976839,0.02837736,113050.0,113040.0,0.00065281]
[1760151978027,0.36837736,113050.0,113040.0,0.04205281]
[1760151978239,0.44707736,113050.0,113040.0,0.00065281]
[1760151978655,0.44607736,113050.0,113040.0,0.00065281]
[1760151978867,0.44707736,113050.0,113040.0,0.00065281]
[1760151979072,0.44607736,113050.0,113040.0,0.00065281]
[1760151979473,0.44707736,113050.0,113040.0,0.00065281]
[1760151979670,0.44707736,113050.0,113010.0,0.0414]
[1760151979878,0.02201,113040.0,113010.0,0.0414]
[1760151980048,0.04162,113030.0,113010.0,0.12509]
[1760151980255,0.40638452,113030.0,113010.0,0.08109]
[1760151980453,0.40638452,113030.0,113010.0,0.12249]
[1760151980888,0.10424452,113030.0,113010.0,0.0414]
[1760151981095,0.05495452,113030.0,113010.0,0.0414]
[1760151981496,0.04162,113020.0,113010.0,0.0414]
[1760151981633,0.06638452,113020.0,113010.0,0.0414]
[1760151982033,0.14537452,113020.0,113000.0,5.505]
[1760151982234,0.02257,113010.0,113000.0,5.505]
[1760151982433,0.04834452,113010.0,113000.0,5.505]
[1760151982861,0.12577452,113010.0,113000.0,5.505]
[1760151983329,0.46577452,113010.0,113000.0,5.505]
[1760151983530,0.46634341,113010.0,113000.0,5.505]
[1760151983931,0.38891341,113010.0,113000.0,5.505]
[1760151984135,0.04891341,113010.0,113000.0,5.505]
[1760151984445,0.04991341,113010.0,113000.0,5.505]
[1760151984997,0.12834341,113010.0,113000.0,5.505]
[1760151987401,1.56034934,113010.0,113000.0,5.505]
[1760151987807,1.38337386,113010.0,113000.0,5.505]
[1760151988240,1.38137386,113010.0,113000.0,5.505]
[1760151988663,1.54834934,113010.0,113000.0,5.505]
[1760151988947,1.47237385,113010.0,113000.0,5.505]
[1760151989151,0.48749531,113010.0,113000.0,5.505]
[1760151989355,1.57434933,113010.0,113000.0,5.41401371]
[1760151989560,1.67534932,113010.0,113000.0,5.41401371]
[1760151989762,1.80637636,113010.0,113000.0,4.47000804]
[1760151989979,1.80637636,113010.0,113000.0,4.04243619]
[1760151990189,6.85537636,113010.0,113000.0,3.57879037]
[1760151990397,0.94720156,112970.0,112960.0,0.02224865]
[1760151990612,1.91695289,112970.0,112960.0,0.02224865]
[1760151990859,0.67223705,112940.0,112890.0,0.0021869]
[1760151991059,0.30212241,112920.0,112900.0,0.07043184]
[1760151991285,0.30212241,112920.0,112850.0,0.11265886]
[1760151991286,0.20221069,112860.0,112850.0,0.05]
[1760151991498,0.08488,112860.0,112850.0,0.12043184]
[1760151991702,0.0853816,112860.0,112850.0,0.13133406]
[1760151992538,0.0853816,112860.0,112850.0,0.06090222]
[1760151992741,0.0853816,112860.0,112850.0,0.05590222]
[1760151992894,0.0863816,112860.0,112850.0,0.05590222]
[1760151993096,0.0015016,112860.0,112850.0,0.05590222]
[1760151993593,0.0025016,112860.0,112850.0,0.05590222]
[1760151994218,1.22738015,112860.0,112850.0,0.05590222]
[1760151994432,1.25753205,112860.0,112850.0,0.05590222]
[1760151994647,1.22738015,112860.0,112850.0,0.05590222]
[1760151994901,0.3425016,112860.0,112850.0,0.05590222]
[1760151995120,0.3425016,112860.0,112850.0,0.01190222]
[1760151995319,0.0025016,112860.0,112850.0,0.01190222]
[1760152002082,0.0025016,112860.0,112810.0,0.69678738]
[1760152002283,0.0025016,112860.0,112820.0,0.34]
[1760152002914,0.0015016,112860.0,112820.0,0.34]
[1760152003586,0.0025016,112860.0,112820.0,0.34]
[1760152003760,0.0015016,112860.0,112820.0,0.34]
[1760152004721,0.0015016,112860.0,112820.0,0.36499999]
[1760152004925,0.0025016,112860.0,112820.0,1.09473047]
[1760152005343,0.0025016,112860.0,112820.0,0.44322875]
[1760152005561,0.0025016,112860.0,112820.0,0.34]
[1760152005787,0.0005016,112860.0,112810.0,0.41822876]
[1760152005992,0.0005016,112860.0,112800.0,0.09822876]
[1760152006249,0.0005016,112860.0,112800.0,0.02]
[1760152006250,0.51771306,112860.0,112800.0,0.02]
[1760152006598,1.40908487,112860.0,112800.0,0.02]
[1760152006810,0.00460973,112850.0,112800.0,0.02]
[1760152007364,0.00460973,112850.0,112800.0,0.09043184]
[1760152007965,0.02102375,112850.0,112800.0,0.09043184]
[1760152008350,0.01642619,112850.0,112800.0,0.43043184]
[1760152008554,0.01642619,112850.0,112800.0,0.36]
[1760152008769,0.00460973,112840.0,112800.0,0.36]
[1760152009597,0.00295024,112840.0,112800.0,0.36]
[1760152009847,0.88487855,112860.0,112780.0,0.07043184]
[1760152010052,0.0098621,112840.0,112770.0,0.07822876]
[1760152010214,0.18612077,112830.0,112770.0,0.1486606]
[1760152010400,0.1943391,112830.0,112770.0,0.07043184]
[1760152010576,0.1943391,112830.0,112770.0,0.06582211]
[1760152010774,0.18613847,112820.0,112770.0,0.06582211]
[1760152010974,1.10940053,112820.0,112770.0,0.06582211]
[1760152011174,0.18615488,112810.0,112750.0,0.0051]
[1760152012022,0.19437616,112810.0,112750.0,0.0056016]
[1760152012194,0.19537616,112810.0,112750.0,0.0056016]
[1760152012394,0.35122128,112810.0,112750.0,0.0056016]
[1760152012817,0.34656179,112810.0,112750.0,0.0056016]
[1760152013044,0.34856179,112810.0,112750.0,0.0056016]
[1760152013195,0.35056179,112810.0,112750.0,0.0056016]
[1760152013396,0.3469023,112810.0,112750.0,0.0056016]
[1760152013950,0.3469023,112810.0,112750.0,0.00634599]
[1760152014301,0.3469023,112810.0,112750.0,0.0056016]
[1760152014628,0.0049023,112810.0,112750.0,0.0056016]
[1760152014834,0.002,112810.0,112760.0,0.07043184]
[1760152015059,0.004,112810.0,112770.0,0.00022743]
[1760152015471,0.004,112810.0,112770.0,0.34]
[1760152015784,0.07043184,112850.0,112770.0,0.34]
[1760152015990,0.001,112810.0,112770.0,0.61735107]
[1760152016192,0.001,112810.0,112770.0,0.46499998]
[1760152016395,0.0009477,112860.0,112770.0,0.47386758]
[1760152016600,0.002,112810.0,112770.0,1.1165017]
[1760152016758,0.002,112810.0,112770.0,0.09999999]
[1760152016963,0.002,112810.0,112760.0,0.0301519]
[1760152017571,0.002,112810.0,112800.0,0.00287272]
[1760152017705,0.07043184,112850.0,112800.0,0.00287272]
[1760152017912,0.07043184,112850.0,112780.0,0.34]
[1760152018106,0.001,112810.0,112780.0,0.41043184]
[1760152018311,0.0009477,112860.0,112780.0,0.41043184]
[1760152018515,0.0009477,112860.0,112780.0,0.34]
[1760152018732,0.34,112820.0,112780.0,0.0005016]
[1760152019136,0.03653,112790.0,112780.0,0.0005016]
[1760152019337,0.03353964,112790.0,112780.0,0.0005016]
[1760152020306,0.0499567,112790.0,112780.0,0.0005016]
[1760152020511,0.01641706,112790.0,112780.0,0.0005016]
[1760152020752,0.03653,112820.0,112780.0,0.19454344]
[1760152020952,0.01841588,112820.0,112810.0,0.04189]
[1760152021156,0.001,112790.0,112780.0,0.0423916]
[1760152021363,0.001,112790.0,112780.0,0.1241116]
[1760152021571,0.002,112790.0,112780.0,0.1241116]
[1760152021774,0.001,112790.0,112780.0,0.77561332]
[1760152021986,0.01641588,112820.0,112790.0,0.34]
[1760152022324,0.01741588,112820.0,112810.0,0.04189]
[1760152022529,0.01641588,112820.0,112800.0,0.04189]
[1760152022940,0.01641588,112820.0,112800.0,0.12361]
[1760152023355,0.01641588,112820.0,112810.0,0.12393699]
[1760152023567,0.01641588,112820.0,112810.0,0.46361]
[1760152023827,0.0344877,112860.0,112820.0,0.34]
[1760152024042,0.01735436,112860.0,112830.0,0.04189]
[1760152024244,0.01735436,112860.0,112850.0,0.04189]
[1760152024465,0.01735436,112860.0,112850.0,0.12361]
[1760152025127,0.01835436,112860.0,112850.0,0.0420403]
[1760152025345,0.05189436,112860.0,112850.0,0.0001503]
[1760152025553,0.02655911,112860.0,112850.0,0.0001503]
[1760152025781,0.02555911,112860.0,112830.0,0.04189]
[1760152025984,0.03653,112840.0,112780.0,0.04189]
[1760152026221,0.06114504,112840.0,112790.0,0.11232184]
[1760152026641,0.06993,112830.0,112790.0,0.11232184]
[1760152026851,0.09454504,112830.0,112790.0,0.19404184]
[1760152027061,0.01641003,112830.0,112800.0,0.12361]
[1760152027265,0.01641003,112830.0,112800.0,0.04189]
[1760152027475,0.03339,112820.0,112800.0,0.04189]
[1760152027678,0.01641003,112820.0,112800.0,0.12361]
[1760152027883,0.01641003,112820.0,112810.0,0.000353]
[1760152028070,0.05294003,112840.0,112810.0,0.000353]
[1760152028303,0.001,112830.0,112810.0,0.123963]
[1760152028519,0.01641003,112830.0,112820.0,0.04189]
[1760152028742,0.0001503,112830.0,112820.0,0.12361]
[1760152029020,0.0001503,112830.0,112820.0,0.46361]
[1760152030489,0.0001503,112830.0,112820.0,1.29238525]
[1760152030715,0.0001503,112830.0,112820.0,1.44753713]
[1760152030935,0.0001503,112830.0,112820.0,1.45026047]
[1760152031570,0.0001503,112830.0,112820.0,1.44926047]
[1760152031991,0.0001503,112830.0,112820.0,1.45026047]
[1760152033417,0.0001503,112830.0,112820.0,0.79875875]
[1760152033535,0.0001503,112830.0,112820.0,0.46633334]
[1760152033943,0.0001503,112830.0,112820.0,0.49648524]
[1760152034351,0.0001503,112830.0,112820.0,0.59648523]
[1760152034552,0.0001503,112830.0,112820.0,1.14798696]
[1760152034750,0.0001503,112830.0,112820.0,0.49648524]
[1760152034966,0.0001503,112830.0,112820.0,0.67375877]
[1760152035171,0.0001503,112830.0,112820.0,1.42526048]
[1760152035825,0.0001503,112830.0,112820.0,1.45026047]
[1760152036236,0.0001503,112830.0,112820.0,1.5131135]
[1760152038321,0.0001503,112830.0,112820.0,1.11026047]
[1760152038730,0.0001503,112830.0,112820.0,1.1731135]
[1760152038931,0.0001503,112830.0,112820.0,1.5131135]
[1760152039752,0.0001503,112830.0,112820.0,1.45026047]
[1760152039953,0.0001503,112830.0,112820.0,1.52848923]
[1760152040150,0.0001503,112830.0,112820.0,1.62848922]
[1760152041831,0.0001503,112830.0,112820.0,1.6276213]
[1760152042029,0.0001503,112830.0,112820.0,0.32869416]
[1760152042233,0.0001503,112830.0,112820.0,0.83992323]
[1760152042433,0.0001503,112830.0,112820.0,0.12546542]
[1760152043321,0.0001503,112830.0,112820.0,0.77696714]
[1760152043846,0.0001503,112830.0,112820.0,0.46546542]
[1760152045520,0.0001503,112830.0,112820.0,0.95669543]
[1760152045939,0.0001503,112830.0,112820.0,0.46073542]
[1760152046142,0.0001503,112830.0,112820.0,0.95669543]
[1760152046344,0.0001503,112830.0,112820.0,0.46073542]
[1760152047077,0.1093503,112830.0,112820.0,0.00172334]
[1760152047724,0.0001503,112830.0,112820.0,0.04099334]
[1760152048161,0.0001503,112830.0,112820.0,0.04149617]
[1760152048578,0.0001503,112830.0,112820.0,0.04099334]
[1760152048780,0.0001503,112830.0,112820.0,0.00072334]
[1760152048988,0.0001503,112830.0,112820.0,0.00172334]
[1760152049227,0.0001503,112830.0,112820.0,0.04099334]
[1760152049430,0.0001503,112830.0,112820.0,0.12148334]
[1760152051296,0.0001503,112830.0,112820.0,0.16893213]
[1760152052669,0.0001503,112830.0,112820.0,0.00072334]
[1760152053076,0.0001503,112830.0,112820.0,0.04817213]
[1760152053328,0.0001503,112830.0,112810.0,0.04344213]
[1760152053560,0.0001503,112830.0,112810.0,0.12076]
[1760152053734,0.0001503,112830.0,112820.0,0.03927]
[1760152054180,0.0001503,112830.0,112820.0,0.12076]
[1760152054892,0.0001503,112830.0,112820.0,0.61672001]
[1760152055128,0.0001503,112830.0,112820.0,1.16414544]
[1760152055359,0.0001503,112830.0,112820.0,1.22710153]
[1760152055640,0.0001503,112830.0,112820.0,1.28914542]
[1760152056068,0.0001503,112830.0,112820.0,1.36737418]
[1760152056269,0.0001503,112830.0,112820.0,1.36837418]
[1760152056475,0.0001503,112830.0,112820.0,0.95772001]
[1760152056630,0.0001503,112830.0,112820.0,0.95672001]
[1760152056834,0.00476003,112830.0,112820.0,0.95772001]
[1760152057291,0.00476003,112830.0,112820.0,0.98787191]
[1760152057513,0.00476003,112830.0,112820.0,1.29014542]
[1760152057717,0.00476003,112830.0,112820.0,1.36837418]
[1760152059161,0.00923742,112860.0,112820.0,1.36837418]
[1760152059162,0.44157232,112920.0,112840.0,0.0301519]
[1760152059453,0.11830264,112920.0,112850.0,0.61672001]
[1760152059644,0.05061032,112920.0,112860.0,0.12076]
[1760152059844,0.00460973,112910.0,112870.0,0.12076]
[1760152060191,0.00460973,112910.0,112880.0,0.12076]
[1760152060605,0.00460973,112910.0,112890.0,0.03927]
[1760152060959,0.00660973,112910.0,112890.0,0.03927]
[1760152061157,0.00460973,112910.0,112890.0,0.12076]
[1760152061710,0.29490285,112960.0,112890.0,0.120425]
[1760152062029,0.00460973,112910.0,112890.0,0.120425]
[1760152062279,0.00460973,112910.0,112900.0,0.03927]
[1760152062477,1.08861868,112970.0,112900.0,0.03927]
[1760152062680,0.00460973,112910.0,112900.0,0.12076]
[1760152062884,0.001,112910.0,112900.0,0.12076]
[1760152063317,0.001,112910.0,112900.0,0.12091097]
[1760152063523,0.00460973,112920.0,112900.0,0.12091097]
[1760152063972,0.00460973,112920.0,112910.0,0.04001258]
[1760152064167,0.00460973,112920.0,112910.0,0.00216205]
[1760152064619,0.00460973,112920.0,112900.0,0.00015097]
[1760152064830,0.001,112910.0,112900.0,0.00015097]
[1760152065239,0.00560973,112920.0,112900.0,0.00015097]
[1760152065416,0.00660973,112920.0,112900.0,0.00015097]
[1760152065976,0.00560973,112920.0,112900.0,0.00015097]
[1760152066179,0.001,112910.0,112900.0,0.00015097]
[1760152066436,0.00559233,112910.0,112900.0,0.12091097]
[1760152066599,0.001,112920.0,112900.0,0.12091097]
[1760152066811,0.00460973,112950.0,112900.0,0.12091097]
[1760152067033,0.00460973,112950.0,112910.0,0.03927]
[1760152067232,0.001,112920.0,112910.0,0.03927]
[1760152068072,0.00460973,112950.0,112910.0,0.03927]
[1760152068282,0.001,112920.0,112910.0,0.03927]
[1760152068637,0.00560973,112950.0,112910.0,0.09231]
[1760152068835,0.00560973,112950.0,112920.0,0.03927]
[1760152069711,0.00460973,112950.0,112920.0,0.03927]